[Event "French Top 16-A 2024"]
[Site "Chartres"]
[Date "2024.06.04"]
[Round "6.7"]
[White "Vitoux, Colomban"]
[Black "Tahay, Alexis"]
[Result "0-1"]
[ECO "B55"]
[WhiteElo "2374"]
[BlackElo "2376"]
[Annotator "RC"]
[PlyCount "64"]
[EventDate "2024.06.01"]
[EventType "team-tourn"]
[EventCountry "FRA"]
[SourceTitle "playchess.com"]
[Source "ChessBase"]
[SourceQuality "1"]
[TimeControl "40/5400+30:1800+30"]

1. e4 {[%emt 0:00:06]} c5 {[%emt 0:04:12]} 2. Nf3 {[%emt 0:03:27]} d6 {[%emt 0:00:35]} 3. d4 {[%emt 0:00:26]} cxd4 {[%emt 0:00:06]} 4. Nxd4 {[%emt 0:00:08]} Nf6 {[%emt 0:00:03]} 5. f3 {[%emt 0:00:31]} e5 {[%emt 0:00:16]} 6. Nb3 {[%emt 0:00:46]} a5 {[%emt 0:00:24]} 7. c4 {[%emt 0:04:37]} Nxe4 {[%emt 0:01:24]} 8. fxe4 {[%emt 0:03:41]} Qh4+ {[%emt 0:00:26]} 9. Kd2 {[%emt 0:00:14]} a4 {[%emt 0:00:03]} 10. Nc3 {[%emt 0:11:15]} axb3 {[%emt 0:01:55]} 11. g3 {[%emt 0:11:06]} Qd8 {[%emt 0:04:46]} 12. Qxb3 {[%emt 0:01:48]} Nc6 {[%emt 0:08:29]} 13. Nd5 {[%emt 0:04:36]} Be7 {[%emt 0:01:37]} 14. Qb6 {[%emt 0:06:06]} O-O {[%emt 0:02:11]} 15. Qxd8 {[%emt 0:11:50]} Bxd8 {[%emt 0:00:07]} 16. Bd3 {[%emt 0:02:04]} b5 {[%emt 0:05:42]} 17. cxb5 {[%emt 0:13:28]} Nd4 {[%emt 0:01:01]} 18. Bc4 {[%emt 0:23:21]} Kh8 {[%emt 0:10:01]} 19. b3 {[%emt 0:00:00]} f5 {[%emt 0:56:42]} 20. Rf1 {[%emt 0:00:00]} Bd7 {[%emt 0:00:00]} 21. a4 {[%emt 0:00:00]} Nxb5 {[%emt 0:00:00]} 22. Bb2 {[%emt 0:00:00]} Nd4 {[%emt 0:00:00]} 23. h4 {[%emt 0:00:00]} g5 {[%emt 0:00:00]} 24. Bxd4 {[%emt 0:00:00]} exd4 {[%emt 0:00:00]} 25. hxg5 {[%emt 0:00:00]} Bxg5+ {[%emt 0:00:00]} 26. Kd3 {[%emt 0:00:00]} Rae8 {[%emt 0:00:00]} 27. exf5 {[%emt 0:00:37]} Bxf5+ {[%emt 0:00:00]} 28. Kxd4 {[%emt 0:00:19]} Bh6 {[%emt 0:00:00]} 29. Nc7 {[%emt 0:02:08]} Bg7+ {[%emt 0:00:00]} 30. Kd5 {[%emt 0:00:08]} Re5+ {[%emt 0:00:00]} 31. Kc6 {[%emt 0:01:05]} Rc8 {[%emt 0:00:00]} 32. Kb7 {[%emt 0:02:11]} Re7 {[%emt 0:00:00]} 0-1

[Event "French Top 16-A 2024"]
[Site "Chartres"]
[Date "2024.06.04"]
[Round "6.7"]
[White "Hirth, Julien"]
[Black "Girel, Joseph"]
[Result "0-1"]
[ECO "B06"]
[WhiteElo "2063"]
[BlackElo "2477"]
[Annotator "TA"]
[PlyCount "168"]
[EventDate "2024.06.01"]
[EventType "team-tourn"]
[EventCountry "FRA"]
[SourceTitle "playchess.com"]
[Source "ChessBase"]
[SourceQuality "1"]
[TimeControl "40/5400+30:1800+30"]

{[%evp 9,168,15,20,17,31,24,16,30,33,18,41,24,34,11,25,8,2,18,12,10,10,2,12,18,7,-17,-21,-17,-14,-10,27,24,31,29,23,26,106,7,4,0,0,0,0,-6,-4,0,0,-18,0,-29,14,11,12,8,11,12,9,0,16,10,10,6,7,0,0,0,8,9,14,17,8,-35,-35,-33,-33,-33,-33,-33,-33,-41,-42,-64,-71,-254,-254,-254,-254,-254,-254,-541,-254,-539,-525,-532,-527,-494,-425,-1254,-1053,-5735,-5735,-8538,-8538,-8538,-787,-5746,-5253,-29960,-29961,-29963,-29964,-29963,-29965,-29966,-29967,-29969,-29969,-29969,-29969,-29969,-29966,-29966,-29967,-29967,-29968,-29968,-29970,-29971,-29972,-29972,-29973,-29973,-29974,-29974,-29973,-29977,-29978,-29980,-29981,-29980,-29981,-29984,-29983,-29986,-29987,-29987,-29988,-29988,-29987,-29988,-29988,-29989,-29987,-29987,-29988,-29989,-29989,-29989,-29989,-29989,-29990]} 1. e4 {[%emt 0:00:04]} c5 {[%emt 0:00:19]} 2. c3 {[%emt 0:00:18]} d5 {[%emt 0:00:10]} 3. exd5 {[%emt 0:00:10]} Qxd5 {[%emt 0:00:10]} 4. d4 {[%emt 0:00:10]} g6 {[%emt 0:01:20]} 5. Nf3 {[%emt 0:00:52]} Bg7 {[%emt 0:00:26]} 6. Nbd2 {[%emt 0:01:26] Bc4 is the strong threat.} cxd4 {[%emt 0:03:13]} 7. Bc4 {[%emt 0:00:15]} Qd8 {[%emt 0:01:24]} 8. Nxd4 {[%emt 0:02:33] The position is equal.} Nf6 {[%emt 0:00:17]} 9. N2f3 {[%emt 0:00:44]} O-O {[%emt 0:00:42]} 10. O-O {[%emt 0:00:14]} a6 {[%emt 0:03:33]} 11. Bb3 {[%emt 0:11:06]} Nbd7 $1 {[%emt 0:02:46]} 12. Qe2 {[%emt 0:01:53]} Nc5 {[%emt 0:01:55]} 13. Bc2 {[%emt 0:00:37]} Qc7 {[%emt 0:02:34]} 14. Re1 {[%emt 0:07:47]} e6 {[%emt 0:01:09]} 15. Bg5 {[%emt 0:02:33]} b6 {[%emt 0:04:16]} 16. Rad1 {[%emt 0:16:18]} Bb7 {[%emt 0:11:57]} 17. h4 {[%emt 0:03:27]} Rfe8 {[%emt 0:04:38][%cal Oe6e5]} 18. Qe5 {[%emt 0:12:08]} Qxe5 {[%emt 0:04:17]} 19. Nxe5 {[%emt 0:00:05]} Nfe4 {[%emt 0:03:28]} 20. Nc4 {[%emt 0:01:33]} Nxg5 {[%emt 0:14:47]} 21. hxg5 {[%emt 0:01:21] Hoping for b4.} b5 {[%emt 0:19:15]} 22. Nd6 {[%emt 0:00:28]} Red8 {[%emt 0:01:02] [#]} (22... Re7 $1 $11) 23. Nxb7 {[%emt 0:00:25]} (23. b4 $1 $16 {[%cal Rb4c5]} Rxd6 24. bxc5) 23... Nxb7 $11 {[%emt 0:00:08]} 24. Nc6 {[%emt 0:04:03][%cal Bd4c6,Bc6b4,Bb4d3,Bd3e5][%mdl 32]} Rd6 {[%emt 0:05:16]} 25. Be4 {[%emt 0:12:31]} Re8 {[%emt 0:00:10] Wards off Ne7+} 26. Nb4 {[%emt 0:07:34]} Rxd1 {[%emt 0:00:23]} 27. Rxd1 {[%emt 0:00:03]} Nc5 {[%emt 0:00:07]} 28. Bc2 {[%emt 0:01:39]} Bf8 {[%emt 0:01:22]} 29. Nd3 {[%emt 0:04:37]} Ne4 {[%emt 0:01:28]} 30. Ne5 {[%emt 0:00:08]} Nd6 {[%emt 0:00:50]} (30... Nxg5 $2 {perishes.} 31. f4 $18) 31. Nd7 {[%emt 0:02:02] Threatens to win with Nf6+.} Rd8 {[%emt 0:01:48]} 32. Nxf8 {[%emt 0:03:43]} Kxf8 {[%emt 0:00:02][%mdl 4096] Endgame. KRB-KRN} 33. a4 {[%emt 0:00:38]} Ke8 {[%emt 0:03:18]} 34. axb5 {[%emt 0:00:11]} axb5 {[%emt 0:00:01]} 35. Kf1 {[%emt 0:00:55]} Ke7 {[%emt 0:00:39]} 36. Ke2 {[%emt 0:01:37]} Ra8 {[%emt 0:00:16]} 37. Bb3 {[%emt 0:00:28]} Ne4 {[%emt 0:00:12]} 38. Rd4 {[%emt 0:00:33]} Nc5 {[%emt 0:03:05]} (38... Nxg5 39. f4 e5 40. Rd5 $18) 39. Rb4 {[%emt 0:00:21]} Ra5 {[%emt 0:00:53]} 40. c4 {[%emt 0:01:17]} Nxb3 {[%emt 0:04:07]} 41. Rxb3 {[%emt 0:30:10]} bxc4 $15 {[%emt 0:30:05] KR-KR} 42. Rb7+ {[%emt 0:00:11]} Kf8 {[%emt 0:01:57]} 43. f4 {[%emt 0:00:00]} Rd5 {[%emt 0:00:00]} 44. Ke3 {[%emt 0:00:00]} Rd3+ {[%emt 0:00:00]} 45. Ke4 {[%emt 0:00:00]} Rg3 {[%emt 0:00:00]} 46. Ke5 $2 {[%emt 0:00:00] [#] Now White is beyond hope.} (46. Kd4 $17) 46... Kg7 $1 $19 {[%emt 0:00:00]} ({Worse is} 46... Rxg2 47. Kf6 Ke8 48. Rxf7 $11) 47. Rc7 {[%emt 0:00:00]} Rxg2 {[%emt 0:00:00]} 48. Rb7 {[%emt 0:00:00]} Rd2 {[%emt 0:00:00]} 49. Rb8 $2 {[%emt 0:00:00]} (49. Ke4) 49... Rd5+ {[%emt 0:00:00]} 50. Ke4 {[%emt 0:00:00]} h6 {[%emt 0:00:00]} 51. gxh6+ {[%emt 0:00:20]} Kxh6 {[%emt 0:00:00]} 52. Rc8 {[%emt 0:04:03]} Rb5 {[%emt 0:00:00]} 53. Rxc4 {[%emt 0:00:17]} (53. Rh8+ $142 Kg7 54. Rh2) 53... Rxb2 {[%emt 0:00:00]} 54. Rc5 {[%emt 0:00:40]} Kg7 {[%emt 0:00:00]} 55. Ra5 {[%emt 0:00:41]} Kf6 {[%emt 0:00:00]} 56. Ra7 {[%emt 0:00:13]} Rb5 {[%emt 0:00:00]} (56... Rb4+ $142 57. Kf3 Rb5) 57. Rc7 {[%emt 0:00:13]} g5 {[%emt 0:00:00]} 58. fxg5+ {[%emt 0:00:25]} Rxg5 {[%emt 0:00:00] Black mates.} 59. Ra7 {[%emt 0:00:24]} Rg4+ {[%emt 0:00:00]} 60. Kf3 {[%emt 0:00:07]} Rb4 {[%emt 0:00:00]} 61. Rc7 {[%emt 0:00:17]} e5 {[%emt 0:00:00]} 62. Rc6+ {[%emt 0:00:37]} Kg5 {[%emt 0:00:00]} 63. Rc5 {[%emt 0:00:19]} f6 {[%emt 0:00:00]} 64. Ra5 {[%emt 0:00:15]} Rb3+ {[%emt 0:00:00]} 65. Ke4 {[%emt 0:00:19]} Kg4 {[%emt 0:00:00]} 66. Ra8 {[%emt 0:00:38]} Rb4+ {[%emt 0:00:00]} 67. Ke3 {[%emt 0:00:27]} Kf5 {[%emt 0:00:00]} 68. Ra3 {[%emt 0:00:12]} Rh4 {[%emt 0:00:00]} 69. Ra6 {[%emt 0:00:48]} Rh3+ {[%emt 0:00:00]} 70. Kf2 {[%emt 0:00:12]} e4 {[%emt 0:00:00]} 71. Rb6 {[%emt 0:00:53]} Ke5 {[%emt 0:00:00]} 72. Rb5+ {[%emt 0:00:12]} Kf4 {[%emt 0:00:00]} 73. Rb4 {[%emt 0:01:35]} Rh2+ {[%emt 0:00:00]} 74. Kg1 {[%emt 0:00:46]} Ra2 {[%emt 0:00:00]} 75. Rb3 {[%emt 0:00:36]} f5 {[%emt 0:00:00]} 76. Rb4 {[%emt 0:02:09]} Kf3 {[%emt 0:00:00]} 77. Rb1 {[%emt 0:00:31]} e3 {[%emt 0:00:00]} 78. Rf1+ {[%emt 0:00:21]} Ke4 {[%emt 0:00:00]} 79. Rd1 {[%emt 0:00:23]} f4 {[%emt 0:00:00]} 80. Rb1 {[%emt 0:00:21]} f3 {[%emt 0:00:00]} 81. Rb4+ {[%emt 0:01:21]} Kf5 {[%emt 0:00:42]} 82. Rb3 {[%emt 0:00:15]} Kf4 {[%emt 0:00:24]} 83. Rb8 {[%emt 0:00:20]} Ra1+ {[%emt 0:00:58]} 84. Kh2 {[%emt 0:00:04]} e2 {[%emt 0:00:20] Weighted Error Value: White=0.61/Black=0.20 (precise) .  Loses game:     	White=1     	---        Mistake:       	White=3     	Black=1      Inaccurate:     	White=4     	Black=2      OK:         	White=17    	Black=20     Best:        	White=1     	Black=4      Strong:       	---       	Black=2} 0-1

[Event "French Top 16-A 2024"]
[Site "Chartres"]
[Date "2024.06.04"]
[Round "6.8"]
[White "Hejazipour, Mitra"]
[Black "Fischer, Julie"]
[Result "1-0"]
[ECO "B07"]
[WhiteElo "2376"]
[BlackElo "2092"]
[Annotator "RC"]
[PlyCount "103"]
[EventDate "2024.06.01"]
[EventType "team-tourn"]
[EventCountry "FRA"]
[SourceTitle "playchess.com"]
[Source "ChessBase"]
[SourceQuality "1"]
[TimeControl "40/5400+30:1800+30"]

1. d4 {[%emt 0:00:25]} Nf6 {[%emt 0:00:11]} 2. Nf3 {[%emt 0:00:08]} g6 {[%emt 0:00:12]} 3. Nbd2 {[%emt 0:00:22]} Bg7 {[%emt 0:03:24]} 4. e4 {[%emt 0:00:21]} d6 {[%emt 0:00:04]} 5. Bd3 {[%emt 0:00:18]} O-O {[%emt 0:01:31]} 6. O-O {[%emt 0:00:12]} c5 {[%emt 0:01:21]} 7. c3 {[%emt 0:01:02]} cxd4 {[%emt 0:04:47]} 8. cxd4 {[%emt 0:00:16]} Nc6 {[%emt 0:00:17]} 9. Re1 {[%emt 0:00:40]} Nd7 {[%emt 0:10:55]} 10. Nb3 {[%emt 0:12:21]} a5 {[%emt 0:00:37]} 11. Be3 {[%emt 0:10:43]} a4 {[%emt 0:09:01]} 12. Nbd2 {[%emt 0:00:49]} a3 {[%emt 0:01:24]} 13. bxa3 {[%emt 0:08:02]} Rxa3 {[%emt 0:00:33]} 14. Nc4 {[%emt 0:01:00]} Ra8 {[%emt 0:00:44]} 15. a4 {[%emt 0:02:18]} Nb4 {[%emt 0:03:39]} 16. Be2 {[%emt 0:09:39]} Nc6 {[%emt 0:15:04]} 17. Rb1 {[%emt 0:04:27]} Na5 {[%emt 0:05:35]} 18. Nfd2 {[%emt 0:01:43]} Nxc4 {[%emt 0:11:29]} 19. Nxc4 {[%emt 0:00:26]} b6 {[%emt 0:07:22]} 20. d5 {[%emt 0:17:26]} Ra6 {[%emt 0:04:02]} 21. Bg4 {[%emt 0:13:05]} f5 {[%emt 0:06:37]} 22. exf5 {[%emt 0:00:27]} gxf5 {[%emt 0:00:05]} 23. Be2 {[%emt 0:00:38]} f4 {[%emt 0:01:59]} 24. Bd4 {[%emt 0:00:39]} Bxd4 {[%emt 0:01:17]} 25. Qxd4 {[%emt 0:00:02]} Rxa4 {[%emt 0:00:35]} 26. Bd1 {[%emt 0:02:14]} Rxc4 {[%emt 0:02:57]} 27. Qxc4 {[%emt 0:00:10]} Ne5 {[%emt 0:00:13]} 28. Qb3 {[%emt 0:04:15]} Bf5 {[%emt 0:00:35]} 29. Bc2 {[%emt 0:00:17]} f3 {[%emt 0:03:44]} 30. Bxf5 {[%emt 0:00:48]} Rxf5 {[%emt 0:00:26]} 31. g3 {[%emt 0:03:23]} Qe8 {[%emt 0:03:19]} 32. Qxb6 {[%emt 0:03:18]} Rf8 {[%emt 0:00:36]} 33. Qc7 {[%emt 0:01:21]} Qf7 {[%emt 0:00:58]} 34. Rb7 {[%emt 0:01:05]} Ng6 {[%emt 0:00:49]} 35. Qc4 {[%emt 0:00:01]} Qf5 {[%emt 0:00:38]} 36. Qe4 {[%emt 0:00:37]} Qxe4 {[%emt 0:00:41]} 37. Rxe4 {[%emt 0:00:02]} Ra8 {[%emt 0:00:09]} 38. Re1 {[%emt 0:01:25]} Ra5 {[%emt 0:00:17]} 39. Rd1 {[%emt 0:00:13]} Kf7 {[%emt 0:00:15]} 40. Rb4 {[%emt 0:01:32]} Kf6 {[%emt 0:00:44]} 41. Re4 {[%emt 0:30:47]} Kf5 {[%emt 0:02:42]} 42. Red4 {[%emt 0:00:00]} h5 {[%emt 0:03:34]} 43. h3 {[%emt 0:00:00]} Ne5 {[%emt 0:02:35]} 44. Rf4+ {[%emt 0:00:00]} Kg5 {[%emt 0:00:54]} 45. Rf8 {[%emt 0:00:00]} Ra4 {[%emt 0:02:18]} 46. Rd2 {[%emt 0:00:00]} Ra1+ {[%emt 0:02:50]} 47. Kh2 {[%emt 0:00:00]} Re1 {[%emt 0:00:36]} 48. Rg8+ {[%emt 0:00:00]} Kf5 {[%emt 0:00:31]} 49. Rd4 {[%emt 0:00:00]} Ng6 {[%emt 0:02:29]} 50. g4+ {[%emt 0:00:00]} hxg4 {[%emt 0:02:00]} 51. Rxg4 {[%emt 0:00:00]} Rf1 {[%emt 0:04:20]} 52. R8xg6 {[%emt 0:00:00]} 1-0

[Event "French Top 16-A 2024"]
[Site "Chartres"]
[Date "2024.06.04"]
[Round "6.8"]
[White "Delorme, Laurie"]
[Black "Auvray, Juliette"]
[Result "1-0"]
[ECO "D11"]
[WhiteElo "2075"]
[BlackElo "1969"]
[Annotator "RC"]
[PlyCount "131"]
[EventDate "2024.06.01"]
[EventType "team-tourn"]
[EventCountry "FRA"]
[SourceTitle "playchess.com"]
[Source "ChessBase"]
[SourceQuality "1"]
[TimeControl "40/5400+30:1800+30"]

1. d4 {[%emt 0:00:11]} d5 {[%emt 0:00:23]} 2. c4 {[%emt 0:00:31]} dxc4 {[%emt 0:00:09]} 3. Nf3 {[%emt 0:02:25]} b5 {[%emt 0:00:56]} 4. e3 {[%emt 0:01:36]} e6 {[%emt 0:04:05]} 5. a4 {[%emt 0:00:47]} c6 {[%emt 0:01:00]} 6. axb5 {[%emt 0:02:17]} cxb5 {[%emt 0:00:29]} 7. b3 {[%emt 0:00:12]} Nf6 {[%emt 0:04:47]} 8. bxc4 {[%emt 0:01:55]} bxc4 {[%emt 0:01:21]} 9. Bxc4 {[%emt 0:00:23]} Bd6 {[%emt 0:01:56]} 10. O-O {[%emt 0:02:44]} O-O {[%emt 0:01:31]} 11. Ba3 {[%emt 0:01:10]} a5 {[%emt 0:05:26]} 12. Nbd2 {[%emt 0:06:04]} Nc6 {[%emt 0:05:57]} 13. Bxd6 {[%emt 0:03:57]} Qxd6 {[%emt 0:00:08]} 14. Bb5 {[%emt 0:08:39]} Nb4 {[%emt 0:08:20]} 15. Qe2 {[%emt 0:09:27]} Qb6 {[%emt 0:07:02]} 16. Rfc1 {[%emt 0:07:05]} Bb7 {[%emt 0:06:50]} 17. Nb3 {[%emt 0:03:49]} Bd5 {[%emt 0:06:27]} 18. Nc5 {[%emt 0:01:08]} Rfc8 {[%emt 0:04:09]} 19. Ne5 {[%emt 0:10:10]} Ne4 {[%emt 0:08:35]} 20. Nxe4 {[%emt 0:10:45]} Bxe4 {[%emt 0:01:05]} 21. Nd7 {[%emt 0:00:57]} Qa7 {[%emt 0:06:05]} 22. f3 {[%emt 0:02:04]} Bg6 {[%emt 0:03:14]} 23. Nc5 {[%emt 0:01:02]} Qb6 {[%emt 0:01:38]} 24. Ba4 {[%emt 0:08:01]} Rd8 {[%emt 0:03:40]} 25. Ra3 {[%emt 0:01:22]} Ra7 {[%emt 0:01:53]} 26. Rac3 {[%emt 0:02:30]} Nd5 {[%emt 0:04:25]} 27. Rc4 {[%emt 0:01:10]} h6 {[%emt 0:01:06]} 28. Nb3 {[%emt 0:02:20]} Nb4 {[%emt 0:01:33]} 29. Nc5 {[%emt 0:01:06]} Nd5 {[%emt 0:00:27]} 30. g3 {[%emt 0:05:17]} Nb4 {[%emt 0:01:39]} 31. Kg2 {[%emt 0:00:19]} Kh7 {[%emt 0:01:24]} 32. e4 {[%emt 0:05:07]} Rd6 {[%emt 0:01:48]} 33. Nb3 {[%emt 0:00:00]} Ra8 {[%emt 0:01:12]} 34. Rc5 {[%emt 0:00:00]} Rad8 {[%emt 0:02:33]} 35. Qc4 {[%emt 0:00:00]} Ra8 {[%emt 0:01:08]} 36. Rb5 {[%emt 0:00:39]} Qd8 {[%emt 0:00:39]} 37. Rb7 {[%emt 0:00:21]} Na2 {[%emt 0:01:12]} 38. Rc2 {[%emt 0:00:21]} Nb4 {[%emt 0:00:07]} 39. Rc1 {[%emt 0:00:32]} Na2 {[%emt 0:00:05]} 40. Rc2 {[%emt 0:00:15]} Nb4 {[%emt 0:00:13]} 41. Rd2 {[%emt 0:13:58]} Rc8 {[%emt 0:04:31]} 42. Qb5 {[%emt 0:00:23]} Nc6 {[%emt 0:07:00]} 43. Rb6 {[%emt 0:00:25]} Rb8 {[%emt 0:07:46]} 44. Rxb8 {[%emt 0:01:00]} Qxb8 {[%emt 0:03:54]} 45. Qxb8 {[%emt 0:00:40]} Nxb8 {[%emt 0:00:03]} 46. Rc2 {[%emt 0:00:06]} Nd7 {[%emt 0:02:35]} 47. Rc6 {[%emt 0:02:51]} Rxc6 {[%emt 0:00:58]} 48. Bxc6 {[%emt 0:00:06]} Nb6 {[%emt 0:01:53]} 49. Nxa5 {[%emt 0:00:12]} Kg8 {[%emt 0:00:33]} 50. Kf2 {[%emt 0:02:07]} Kf8 {[%emt 0:00:20]} 51. Ke3 {[%emt 0:00:10]} Ke7 {[%emt 0:00:15]} 52. Nb7 {[%emt 0:00:11]} Bh5 {[%emt 0:01:46]} 53. g4 {[%emt 0:01:34]} Bg6 {[%emt 0:00:03]} 54. Kd3 {[%emt 0:00:44]} f6 {[%emt 0:01:34]} 55. Kc3 {[%emt 0:01:11]} Nc8 {[%emt 0:00:51]} 56. Kb4 {[%emt 0:03:48]} Nd6 {[%emt 0:00:35]} 57. Kc5 {[%emt 0:00:05]} Nxb7+ {[%emt 0:01:49]} 58. Bxb7 {[%emt 0:00:03]} h5 {[%emt 0:01:44]} 59. h3 {[%emt 0:02:04]} h4 {[%emt 0:02:01]} 60. Kc6 {[%emt 0:01:34]} f5 {[%emt 0:02:02]} 61. Kc7 {[%emt 0:00:52]} fxg4 {[%emt 0:00:34]} 62. fxg4 {[%emt 0:00:30]} Be8 {[%emt 0:01:20]} 63. d5 {[%emt 0:00:29]} exd5 {[%emt 0:00:14]} 64. exd5 {[%emt 0:00:06]} Kf6 {[%emt 0:00:10]} 65. d6 {[%emt 0:00:33]} Kg5 {[%emt 0:00:47]} 66. Bc6 {[%emt 0:00:05]} 1-0

[Event "French Top 16-A 2024"]
[Site "Chartres"]
[Date "2024.06.04"]
[Round "6.9"]
[White "Amin, Bassem"]
[Black "Parligras, Mircea-Emilian"]
[Result "1-0"]
[ECO "D02"]
[WhiteElo "2683"]
[BlackElo "2561"]
[Annotator "TA"]
[PlyCount "71"]
[EventDate "2024.06.01"]
[EventType "team-tourn"]
[EventCountry "FRA"]
[SourceTitle "playchess.com"]
[Source "ChessBase"]
[SourceQuality "1"]
[TimeControl "40/5400+30:1800+30"]

{[%evp 15,71,-20,-14,-22,-26,-23,-6,-10,-26,-28,-8,-14,-20,-15,0,0,0,3,20,18,10,15,16,7,14,15,42,54,67,58,69,28,61,14,29,-32,-31,-37,0,0,0,-26,120,137,442,462,834,943,941,335,931,762,3097,3594,29990,29991,29991,29992]} 1. Nf3 {[%emt 0:01:16]} d5 {[%emt 0:00:08]} 2. g3 {[%emt 0:00:06]} Nd7 {[%emt 0:00:06]} 3. d4 {[%emt 0:03:53]} Nb6 {[%emt 0:00:08]} 4. Nc3 {[%emt 0:00:08]} Bf5 {[%emt 0:00:33]} 5. Nh4 {[%emt 0:00:10]} Bg4 {[%emt 0:00:09]} 6. h3 {[%emt 0:01:12] D02: 1 d4 d5 2 Nf3 sidelines, including 2...Nf6 3 g3 and 2...Nf6 3 Bf4.} Bh5 {[%emt 0:00:40]} 7. g4 {[%emt 0:01:43]} e6 {[%emt 0:01:57]} 8. Ng2 {[%emt 0:01:10]} Bg6 {[%emt 0:00:09]} 9. Nf4 {[%emt 0:00:06]} Nf6 $146 {[%emt 0:10:48]} ({Predecessor:} 9... Bd6 10. Nxg6 hxg6 11. Bg2 Bb4 12. Qd3 Nf6 13. Qb5+ Nfd7 14. Qxb4 a5 15. Qb5 Nc4 {1-0 Daneshvar,B (2591)-Nihal,S (2688) Wch Blitz Samarkand 2023 (20)}) 10. Bg2 {[%emt 0:04:37]} c5 {[%emt 0:17:58]} 11. e3 {[%emt 0:08:24]} cxd4 {[%emt 0:09:03]} 12. Nxg6 {[%emt 0:00:26]} hxg6 {[%emt 0:00:21]} 13. exd4 {[%emt 0:00:30]} Bb4 {[%emt 0:05:51]} 14. Qd3 {[%emt 0:00:21]} O-O {[%emt 0:00:25]} 15. O-O {[%emt 0:00:41]} Qc7 {[%emt 0:03:27]} 16. Ne2 {[%emt 0:02:01]} Rac8 {[%emt 0:08:42]} 17. c3 {[%emt 0:00:17]} Bd6 {[%emt 0:00:05]} 18. b3 {[%emt 0:13:01]} Nbd7 {[%emt 0:04:45]} 19. f4 {[%emt 0:06:36]} Qc6 {[%emt 0:01:38]} 20. g5 {[%emt 0:05:36]} Ne8 {[%emt 0:09:10]} 21. h4 {[%emt 0:09:34]} Be7 {[%emt 0:00:17]} 22. Bd2 {[%emt 0:11:46]} Nd6 {[%emt 0:00:07]} 23. Ng3 {[%emt 0:00:23]} b5 {[%emt 0:01:53]} 24. Qe2 {[%emt 0:04:14]} (24. Bf3 $14) 24... Rfe8 $11 {[%emt 0:02:44]} 25. h5 {[%emt 0:10:01]} (25. Kf2 $11) 25... gxh5 $1 $15 {[%emt 0:00:28]} 26. g6 {[%emt 0:00:26]} (26. Nxh5 Qb6 27. Qd3 b4 28. cxb4 Nf5) 26... h4 {[%emt 0:06:52]} (26... fxg6 27. Qxe6+ Kh7 28. Bxd5 $18) 27. f5 {[%emt 0:00:39]} Bf6 {[%emt 0:05:31]} (27... hxg3 $2 28. gxf7+ Nxf7 29. fxe6 $18) 28. fxe6 {[%emt 0:02:54]} Rxe6 {[%emt 0:00:45] [#]} (28... hxg3 $2 29. gxf7+ (29. exf7+ Kf8 $18) 29... Kf8 30. fxe8=Q+ (30. fxe8=R+ Rxe8 31. Rae1 Ne4 $18) 30... Rxe8 31. Rae1 $18) (28... fxe6 $11 29. Nh5 b4) 29. Qh5 $1 $16 {[%emt 0:01:09]} hxg3 $2 {[%emt 0:04:54][%mdl 8192]} (29... fxg6 $16 30. Qxd5 Nf7 (30... Qxd5 $2 31. Bxd5 Kf7 32. Rae1 $18)) 30. Bxd5 $18 {[%emt 0:01:03]} Qb6 {[%emt 0:00:14]} (30... Qa6 $142 31. Rae1 Rce8 (31... Rxe1 32. gxf7+ Kf8 33. Rxe1 $18)) 31. Bxe6 $18 {[%emt 0:00:41]} fxe6 {[%emt 0:00:03]} 32. Qh7+ {[%emt 0:03:20]} Kf8 {[%emt 0:00:02]} 33. Bg5 {[%emt 0:00:15]} Nf5 {[%emt 0:02:09]} 34. Rxf5 {[%emt 0:02:52]} exf5 {[%emt 0:00:58] [#]} 35. Re1 $1 {[%emt 0:02:39]} (35. Qh8+ Ke7 36. Re1+ (36. Qxc8 Bxg5 37. Re1+ Kd6 $17) 36... Kd6 37. Bf4+ Be5 38. Qxc8 (38. Bxe5+ Nxe5 39. Qxc8 Nf3+ 40. Kf1 Nxe1 $16) 38... Bxf4 $16) 35... Bxd4+ {[%emt 0:02:09]} 36. Kg2 {[%emt 0:00:30]} 1-0